fUST/lending_fUST_20250624
["ID","MTS","AMOUNT","RATE_DAILY","PERIOD"]
[367300810,1750738242234,-1816.61,0.0002,2]
[367300811,1750738242244,-460.0,0.0002,2]
[367300812,1750738242254,-460.0,0.0002,2]
[367300813,1750738242263,-460.0,0.0002,2]
[367300814,1750738242273,-1560.02,0.0002,2]
[367300815,1750738242282,-460.0,0.0002,2]
[367300816,1750738242292,-4491.91,0.0002,2]
[367300817,1750738242303,-1473.56,0.0002,2]
[367300818,1750738242322,-714.99,0.0002,2]
[367300819,1750738242334,-460.0,0.0002,2]
[367300820,1750738242344,-917.68,0.0002,2]
[367300821,1750738242355,-1147.36,0.0002,2]
[367300822,1750738242366,-2445.98,0.0002,2]
[367300823,1750738242375,-718.52,0.0002,2]
[367300824,1750738242385,-460.0,0.0002,2]
[367300825,1750738242396,-460.0,0.0002,2]
[367300826,1750738242406,-830.81,0.0002,2]
[367300827,1750738242415,-2833.66,0.0002,2]
[367300828,1750738242425,-460.0,0.0002,2]
[367300829,1750738242434,-615.31,0.0002,2]
[367300830,1750738242444,-826.26,0.0002,2]
[367300831,1750738242453,-673.38,0.0002,2]
[367300832,1750738242462,-1105.83,0.0002,2]
[367300833,1750738242472,-702.21,0.0002,2]
[367300834,1750738242481,-460.0,0.0002,2]
[367300835,1750738242490,-886.87,0.0002,2]
[367300836,1750738242499,-551.99,0.0002,2]
[367300837,1750738242509,-706.29,0.0002,2]
[367300838,1750738242518,-1737.76,0.0002,2]
[367300839,1750738242528,-1605.77,0.0002,2]
[367300840,1750738242537,-558.57,0.0002,2]
[367300841,1750738242547,-1908.57,0.0002,2]
[367300842,1750738242556,-569.34,0.0002,2]
[367300843,1750738242565,-2152.46,0.0002,2]
[367300844,1750738242575,-460.0,0.0002,2]
[367300845,1750738242584,-940.78,0.0002,2]
[367300846,1750738242594,-678.37,0.0002,2]
[367300847,1750738242603,-657.5,0.0002,2]
[367300848,1750738242612,-648.94,0.0002,2]
[367300849,1750738242622,-1599.4,0.0002,2]
[367300850,1750738242631,-510.07,0.0002,2]
[367300851,1750738242641,-460.0,0.0002,2]
[367300852,1750738242650,-961.36,0.0002,2]
[367300853,1750738242659,-160.0,0.00020163,7]
[367300854,1750738242669,-2187.14402365,0.0002017,2]
[367300855,1750738242678,-313.760506,0.00020187,2]
[367300856,1750738242688,-799909.37750801,0.00020191,2]
[367300857,1750738242866,-624.20491612,0.00020191,2]
[367300858,1750738243085,-184.870615,0.00019117,2]
[367300861,1750738243267,-235.52334431,0.00019117,2]
[367300863,1750738243276,-138.50942294,0.0002,2]
[367300888,1750738243846,-503.45797373,0.00019452,2]
[367300890,1750738243856,-321.49057706,0.0002,2]
[367300893,1750738243866,-503.45797373,0.00020191,2]
[367300895,1750738243876,-446.27928348,0.00020191,2]
[367300897,1750738243887,-676.49551176,0.00020191,2]
[367300905,1750738243950,-2250.50978165,0.00020191,2]
[367300907,1750738243962,-25167.9645,0.00020191,2]
[367300909,1750738243973,-594.61232,0.00020191,2]
[367300913,1750738244005,-480.99344352,0.00020191,2]
[367300920,1750738244060,-15866.62281083,0.00020191,2]
[367300961,1750738246778,-1785.2,0.00019178,2]
[367300963,1750738246788,-1785.2,0.00019452,2]
[367300965,1750738246798,-1785.2,0.00019726,2]
[367300967,1750738246807,-503.45797373,0.00019726,2]
[367300969,1750738246816,-1480.14823048,0.0002,2]
[367300971,1750738246828,-305.05176952,0.0002,2]
[367300973,1750738246838,-3386.40690836,0.00020191,2]
[367300979,1750738246884,-702.06664328,0.00020191,2]
[367301248,1750738268070,5000.0,0.000191,2]
[367301249,1750738287656,5000.0,0.000191,2]
[367301250,1750738298943,396.87410665,0.00024,120]
[367301251,1750738299392,164.224603,0.00018982,2]
[367301252,1750738299610,164.224603,0.00018982,61]
[367301253,1750738300014,164.224603,0.00018982,120]
[367301255,1750738303118,5000.0,0.000191,2]
[367301256,1750738316265,1381.0,0.00026147,60]
[367301257,1750738318761,5000.0,0.000191,2]
[367301258,1750738328100,287.0,0.00018862,2]
[367301259,1750738334330,5000.0,0.000191,2]
[367301260,1750738338049,287.0,0.00018942,2]
[367301261,1750738353283,5000.0,0.000191,2]
[367301262,1750738368892,5000.0,0.000191,2]
[367301263,1750738385621,5000.0,0.000191,2]
[367301264,1750738403439,5000.0,0.000191,2]
[367301265,1750738419073,5000.0,0.000191,2]
[367301266,1750738434653,5000.0,0.000191,2]
[367301267,1750738437350,175.210794,0.00019078,2]
[367301268,1750738451249,3213.10597803,0.000191,2]
[367301270,1750738488933,282.384455,0.00013699,2]
[367301271,1750738632493,175.210794,0.00019078,2]
[367301272,1750738775764,800.0,0.00018224,2]
[367301273,1750738812748,175.210794,0.00019078,2]
[367301274,1750738933823,150.0,0.000189,2]
[367301275,1750739076667,2001.9,0.00019,14]
[367301276,1750739140341,429.97911383,0.000191,2]
[367301278,1750739228115,-300.0,0.00019171,2]
[367301279,1750739228136,-207.4,0.00019172,2]
[367301280,1750739228157,-1192.71679,0.00019172,2]
[367301304,1750739377093,-557.73921,0.00019172,2]
[367301305,1750739377113,-617.04079,0.00019172,2]
[367301310,1750739424419,-638.85,0.00019172,2]
[367302260,1750739446107,-128.74167642,0.00019172,2]
[367302262,1750739446117,-207.4,0.00019172,2]
[367302264,1750739446126,-123.85832358,0.00019175,2]
[367303272,1750739456970,-176.14167642,0.00019175,2]
[367303292,1750739457136,-240.13932358,0.00019175,2]
[367303413,1750739500053,-175.29521816,0.00019168,2]
[367303414,1750739504094,965.57,0.000191,2]
[367303415,1750739525295,-24.63478184,0.00019168,2]
[367303416,1750739525318,-243.74621816,0.00019175,2]
[367303419,1750739587805,2000.0,0.00024,30]
[367303420,1750739589791,-201.46470375,0.00019175,2]
[367303421,1750739597806,278.893615,0.00013699,2]
[367303423,1750739646579,-161.40479298,0.00019175,2]
[367303425,1750739718054,-188.23937203,0.00019172,2]
[367303427,1750739804411,800.0,0.00018994,2]
[367303428,1750739919973,160.0,0.00019002,3]
[367303432,1750740106079,10081.389857,0.00018323,2]
[367303433,1750740111661,-199.93,0.00019168,2]
[367303434,1750740111684,-9.68513429,0.00019172,2]
[367303435,1750740305901,-188.0,0.00019175,2]
[367303436,1750740305923,-203.50529064,0.00019175,2]
[367303437,1750740309566,-233.6115,0.00019172,2]
[367303439,1750740446893,-300.0,0.00019171,2]
[367303440,1750740446916,-150.0,0.00019171,2]
[367303442,1750740451085,-150.0,0.00019171,2]
[367303443,1750740451110,-266.3885,0.00019172,2]
[367303444,1750740451132,-500.0,0.00019172,2]
[367303445,1750740451156,-500.0,0.00019172,2]
[367303446,1750740451179,-172.96256502,0.00019172,2]
[367303450,1750740601485,264.948934,0.00013699,2]
[367303521,1750740638090,-300.0,0.00019171,2]
[367303522,1750740638100,-210.0,0.00019171,2]
[367303523,1750740638109,-1155.0,0.00019171,2]
[367303524,1750740638119,-207.4,0.00019172,2]
[367303525,1750740638128,-500.0,0.00019177,2]
[367303526,1750740638138,-500.0,0.00019177,2]
[367303527,1750740638147,-500.0,0.00019177,2]
[367303528,1750740638159,-500.0,0.00019177,2]
[367303529,1750740638168,-500.0,0.00019177,2]
[367303530,1750740638178,-500.0,0.00019177,2]
[367303531,1750740638187,-176.18384178,0.00019177,2]
[367303532,1750740638200,-373.81615822,0.00019177,2]
[367303533,1750740638209,-293.77187692,0.00019177,2]
[367303534,1750740638226,-206.22812308,0.00019177,2]
[367303535,1750740638237,-460.0,0.00019178,2]
[367303536,1750740638247,-460.0,0.00019178,2]
[367303537,1750740638256,-460.0,0.00019178,2]
[367303538,1750740638266,-460.0,0.00019178,2]
[367303539,1750740638276,-460.0,0.00019178,2]
[367303540,1750740638285,-461.00088231,0.00019178,2]
[367303541,1750740638295,-460.0,0.00019178,2]
[367303542,1750740638304,-460.0,0.00019178,2]
[367303543,1750740638313,-170.96897649,0.00019178,2]
[367303544,1750740638323,-460.0,0.00019178,2]
[367303545,1750740638333,-468.54,0.00019178,2]
[367303546,1750740638343,-1059.08,0.00019178,2]
[367303547,1750740638354,-460.0,0.00019178,2]
[367303548,1750740638364,-460.0,0.00019178,2]
[367303549,1750740638373,-460.0,0.00019178,2]
[367303550,1750740638383,-460.0,0.00019178,2]
[367303551,1750740638393,-460.0,0.00019178,2]
[367303552,1750740638402,-460.0,0.00019178,2]
[367303553,1750740638412,-460.0,0.00019178,2]
[367303554,1750740638421,-460.0,0.00019178,2]
[367303555,1750740638431,-460.0,0.00019178,2]
[367303556,1750740638440,-460.0,0.00019178,2]
[367303557,1750740638450,-460.0,0.00019178,2]
[367303558,1750740638460,-460.0,0.00019178,2]
[367303559,1750740638470,-435.02,0.00019178,2]
[367303560,1750740638480,-460.0,0.00019178,2]
[367303561,1750740638492,-460.0,0.00019178,2]
[367303562,1750740638501,-526.47,0.00019178,2]
[367303563,1750740638510,-460.0,0.00019178,2]
[367303564,1750740638520,-460.0,0.00019178,2]
[367303565,1750740638529,-463.1450188,0.00019178,2]
[367303566,1750740638539,-460.0,0.00019178,2]
[367303567,1750740638549,-460.0,0.00019178,2]
[367303568,1750740638559,-460.0,0.00019178,2]
[367303569,1750740638569,-460.0,0.00019178,2]
[367303570,1750740638579,-497.23282899,0.00019178,2]
[367303571,1750740638589,-471.59760005,0.00019178,2]
[367303572,1750740638598,-592.07,0.00019178,2]
[367303573,1750740638608,-460.0,0.00019178,2]
[367303574,1750740638617,-460.0,0.00019178,2]
[367303575,1750740638627,-460.0,0.00019178,2]
[367303576,1750740638637,-460.0,0.00019178,2]
[367303577,1750740638646,-460.0,0.00019178,2]
[367303578,1750740638656,-589.37832938,0.00019178,2]
[367303579,1750740638666,-460.0,0.00019178,2]
[367303580,1750740638675,-460.0,0.00019178,2]
[367303581,1750740638685,-460.0,0.00019178,2]
[367303582,1750740638694,-460.0,0.00019178,2]
[367303583,1750740638704,-591.54,0.00019178,2]
[367303584,1750740638713,-460.0,0.00019178,2]
[367303585,1750740638723,-488.18,0.00019178,2]
[367303586,1750740638733,-1738.21,0.00019178,2]
[367303587,1750740638742,-460.0,0.00019178,2]
[367303588,1750740638752,-460.0,0.00019178,2]
[367303589,1750740638761,-1543.71,0.00019178,2]
[367303590,1750740638771,-460.0,0.00019178,2]
[367303591,1750740638781,-1855.17,0.00019178,2]
[367303592,1750740638790,-650.13,0.00019178,2]
[367303593,1750740638799,-200.0,0.00019178,10]
[367303594,1750740638809,-200.0,0.00019178,10]
[367303595,1750740638818,-158.212625,0.00019178,10]
[367303596,1750740638834,-307.77,0.00019178,2]
[367303597,1750740638846,-460.0,0.00019178,2]
[367303598,1750740638855,-661.46,0.00019178,2]
[367303599,1750740638865,-102.31392219,0.00019178,2]
[367303894,1750740643447,-619.70537815,0.00019176,2]
[367303896,1750740643457,-500.0,0.00019176,2]
[367303898,1750740643467,-500.0,0.00019176,2]
[367303900,1750740643476,-362.22907912,0.00019176,2]
[367303902,1750740643485,-633.63201153,0.00019176,2]
[367303904,1750740643494,-394.0636223,0.00019176,2]
[367303906,1750740643503,-290.00941988,0.00019176,2]
[367303908,1750740643513,-357.68607781,0.00019178,2]
[367303910,1750740643523,-540.23,0.00019178,2]
[367303912,1750740643532,-460.0,0.00019178,2]
[367303914,1750740643542,-460.0,0.00019178,2]
[367303915,1750740643553,-460.0,0.00019178,2]
[367303916,1750740643563,-783.9,0.00019178,2]
[367303917,1750740643572,-460.0,0.00019178,2]
[367303918,1750740643581,-707.71,0.00019178,2]
[367303919,1750740643591,-775.88773152,0.00019178,2]
[367303926,1750740646363,-623.32226848,0.00019178,2]
[367303927,1750740646375,-460.0,0.00019178,2]
[367303928,1750740646385,-617.93,0.00019178,2]
[367303929,1750740646395,-2006.80808262,0.00019178,2]
[367303936,1750741516980,-192.68607355,0.00019166,2]
[367303937,1750741539418,-14.71392645,0.00019166,2]
[367303938,1750741539440,-207.23850403,0.00019177,2]
[367303939,1750741634523,-300.0,0.00019177,2]
[367303940,1750741634546,-126.09866421,0.00019177,2]
[367303955,1750741815423,-181.27647748,0.00019166,2]
[367303975,1750741832244,-26.12352252,0.00019166,2]
[367303977,1750741832254,-300.0,0.00019177,2]
[367303979,1750741832264,-229.0,0.00019177,2]
[367303981,1750741832273,-174.0,0.00019177,2]
[367303983,1750741832283,-194.0,0.00019177,2]
[367303987,1750741832302,-300.0,0.00019177,2]
[367303989,1750741832312,-425.26016373,0.00019178,2]
[367303991,1750741832322,-420.0,0.00019178,2]
[367303993,1750741832331,-460.0,0.00019178,2]
[367303994,1750741832340,-426.13961418,0.00019178,2]
[367303995,1750741832350,-460.0,0.00019178,2]
[367303997,1750741832360,-460.0,0.00019178,2]
[367303999,1750741832370,-460.0,0.00019178,2]
[367304000,1750741832380,-510.64,0.00019178,2]
[367304002,1750741832390,-442.01088159,0.00019178,2]
[367304003,1750741832399,-273.59,0.00019178,2]
[367304004,1750741832410,-460.0,0.00019178,2]
[367304005,1750741832419,-460.0,0.00019178,2]
[367304006,1750741832429,-726.93581799,0.00019178,2]
[367304007,1750741832443,-288.02418201,0.00019178,2]
[367304008,1750741832454,-198.316712,0.00019178,2]
[367304009,1750741832463,-460.0,0.00019178,2]
[367304010,1750741832473,-460.0,0.00019178,2]
[367304011,1750741832483,-460.0,0.00019178,2]
[367304012,1750741832492,-460.0,0.00019178,2]
[367304013,1750741832502,-504.53,0.00019178,2]
[367304014,1750741832511,-460.0,0.00019178,2]
[367304015,1750741832520,-460.0,0.00019178,2]
[367304016,1750741832530,-460.0,0.00019178,2]
[367304017,1750741832539,-460.0,0.00019178,2]
[367304018,1750741832549,-460.0,0.00019178,2]
[367304019,1750741832559,-460.0,0.00019178,2]
[367304020,1750741832568,-460.0,0.00019178,2]
[367304021,1750741832578,-460.0,0.00019178,2]
[367304022,1750741832588,-567.4,0.00019178,2]
[367304023,1750741832598,-460.0,0.00019178,2]
[367304024,1750741832608,-177.75826318,0.00019178,2]
[367304025,1750741832617,-460.0,0.00019178,2]
[367304026,1750741832627,-460.0,0.00019178,2]
[367304027,1750741832640,-460.0,0.00019178,2]
[367304028,1750741832650,-1904.84,0.00019178,2]
[367304029,1750741832659,-460.0,0.00019178,2]
[367304030,1750741832669,-460.0,0.00019178,2]
[367304031,1750741832678,-460.0,0.00019178,2]
[367304032,1750741832690,-460.0,0.00019178,2]
[367304033,1750741832699,-460.0,0.00019178,2]
[367304034,1750741832708,-460.0,0.00019178,2]
[367304035,1750741832717,-489.04,0.00019178,2]
[367304036,1750741832727,-543.26,0.00019178,2]
[367304037,1750741832737,-447.96903851,0.00019178,2]
[367304038,1750741832746,-460.0,0.00019178,2]
[367304039,1750741832756,-460.0,0.00019178,2]
[367304040,1750741832765,-1071.89228192,0.00019178,2]
[367304041,1750741832778,-417.74771808,0.00019178,2]
[367304042,1750741832787,-460.0,0.00019178,2]
[367304043,1750741832797,-1742.45,0.00019178,2]
[367304044,1750741832806,-467.83,0.00019178,2]
[367304045,1750741832816,-460.0,0.00019178,2]
[367304046,1750741832825,-751.24,0.00019178,2]
[367304047,1750741832835,-517.72,0.00019178,2]
[367304048,1750741832844,-688.58,0.00019178,2]
[367304049,1750741832855,-460.0,0.00019178,2]
[367304050,1750741832864,-279.58635838,0.00019178,2]
[367304052,1750741832874,-460.0,0.00019178,2]
[367304054,1750741832884,-460.0,0.00019178,2]
[367304056,1750741832894,-558.25,0.00019178,2]
[367304057,1750741832904,-460.0,0.00019178,2]
[367304058,1750741832914,-579.16391342,0.00019178,2]
[367304059,1750741832927,-621.5,0.00019178,2]
[367304060,1750741832937,-601.65531892,0.00019178,2]
[367304061,1750741832947,-614.99,0.00019178,2]
[367304062,1750741832956,-460.0,0.00019178,2]
[367304063,1750741832966,-1417.57,0.00019178,2]
[367304064,1750741832976,-1081.7,0.00019178,2]
[367304065,1750741832985,-1621.83,0.00019178,2]
[367304066,1750741832994,-1556.05,0.00019178,2]
[367304067,1750741833004,-4192.3,0.00019178,2]
[367304068,1750741833014,-460.0,0.00019178,2]
[367304069,1750741833024,-460.0,0.00019178,2]
[367304070,1750741833034,-460.0,0.00019178,2]
[367304071,1750741833043,-460.0,0.00019178,2]
[367304072,1750741833053,-711.51,0.00019178,2]
[367304073,1750741833063,-460.0,0.00019178,2]
[367304074,1750741833073,-460.0,0.00019178,2]
[367304075,1750741833083,-975.3,0.00019178,2]
[367304076,1750741833093,-1064.35,0.00019178,2]
[367304077,1750741833104,-579.15,0.00019178,2]
[367304078,1750741833114,-678.23,0.00019178,2]
[367304079,1750741833123,-840.58,0.00019178,2]
[367304080,1750741833133,-1797.04,0.00019178,2]
[367304081,1750741833143,-460.0,0.00019178,2]
[367304082,1750741833153,-858.25,0.00019178,2]
[367304083,1750741833163,-611.35,0.00019178,2]
[367304084,1750741833173,-804.06,0.00019178,2]
[367304085,1750741833183,-460.0,0.00019178,2]
[367304086,1750741833192,-642.32,0.00019178,2]
[367304087,1750741833202,-460.0,0.00019178,2]
[367304088,1750741833212,-503.84,0.00019178,2]
[367304089,1750741833221,-512.8,0.00019178,2]
[367304090,1750741833231,-1409.21,0.00019178,2]
[367304091,1750741833241,-622.81,0.00019178,2]
[367304092,1750741833251,-447.25349049,0.00019178,2]
[367304093,1750741833260,-658.28055251,0.00019178,2]
[367304098,1750741838183,-1078.73944749,0.00019178,2]
[367304099,1750741838192,-460.0,0.00019178,2]
[367304100,1750741838202,-379.35999605,0.00019178,2]
[367304102,1750741838213,-80.64000395,0.00019178,2]
[367304104,1750741838223,-460.0,0.00019178,2]
[367304106,1750741838232,-2907.26,0.00019178,2]
[367304108,1750741838241,-464.73192859,0.00019178,2]
[367304110,1750741838251,-223.59930926,0.00019178,2]
[367304112,1750741838260,-460.0,0.00019178,2]
[367304114,1750741838269,-460.0,0.00019178,2]
[367304116,1750741838279,-1988.08,0.00019178,2]
[367304118,1750741838288,-460.0,0.00019178,2]
[367304120,1750741838297,-460.0,0.00019178,2]
[367304121,1750741838306,-613.68,0.00019178,2]
[367304123,1750741838316,-1427.57,0.00019178,2]
[367304125,1750741838326,-460.0,0.00019178,2]
[367304127,1750741838335,-491.13323358,0.00019178,2]
[367304129,1750741838345,-430.986886,0.00019178,2]
[367304131,1750741838354,-196.9137959,0.00019178,2]
[367304133,1750741838363,-5000.0,0.00019192,2]
[367304135,1750741838373,-208.7,0.00019451,2]
[367304137,1750741838383,-460.0,0.00019452,2]
[367304139,1750741838393,-460.0,0.00019452,2]
[367304141,1750741838402,-460.0,0.00019452,2]
[367304144,1750741838412,-510.64,0.00019452,2]
[367304146,1750741838421,-460.0,0.00019452,2]
[367304147,1750741838431,-1014.96,0.00019452,2]
[367304148,1750741838440,-460.0,0.00019452,2]
[367304149,1750741838450,-504.53,0.00019452,2]
[367304151,1750741838459,-460.0,0.00019452,2]
[367304152,1750741838469,-460.0,0.00019452,2]
[367304153,1750741838478,-460.0,0.00019452,2]
[367304154,1750741838488,-460.0,0.00019452,2]
[367304155,1750741838497,-460.0,0.00019452,2]
[367304156,1750741838507,-460.0,0.00019452,2]
[367304157,1750741838516,-460.0,0.00019452,2]
[367304158,1750741838526,-567.4,0.00019452,2]
[367304159,1750741838535,-460.0,0.00019452,2]
[367304160,1750741838545,-460.0,0.00019452,2]
[367304161,1750741838555,-460.0,0.00019452,2]
[367304162,1750741838565,-1904.84,0.00019452,2]
[367304163,1750741838575,-228.77977055,0.00019452,2]
[367304164,1750741838585,-460.0,0.00019452,2]
[367304165,1750741838595,-460.0,0.00019452,2]
[367304166,1750741838749,-460.0,0.00019452,2]
[367304167,1750741838760,-489.04,0.00019452,2]
[367304168,1750741838770,-543.26,0.00019452,2]
[367304169,1750741838779,-460.0,0.00019452,2]
[367304170,1750741838788,-1742.45,0.00019452,2]
[367304171,1750741838798,-467.83,0.00019452,2]
[367304172,1750741838808,-460.0,0.00019452,2]
[367304173,1750741838817,-751.24,0.00019452,2]
[367304174,1750741838826,-517.72,0.00019452,2]
[367304175,1750741838837,-688.58,0.00019452,2]
[367304176,1750741838846,-460.0,0.00019452,2]
[367304177,1750741838856,-460.0,0.00019452,2]
[367304178,1750741838865,-460.0,0.00019452,2]
[367304179,1750741838875,-558.25,0.00019452,2]
[367304180,1750741838885,-460.0,0.00019452,2]
[367304181,1750741838896,-621.5,0.00019452,2]
[367304182,1750741838905,-460.0,0.00019452,2]
[367304183,1750741838914,-614.99,0.00019452,2]
[367304184,1750741838924,-1417.57,0.00019452,2]
[367304185,1750741838933,-1081.7,0.00019452,2]
[367304186,1750741838943,-1621.83,0.00019452,2]
[367304187,1750741838952,-1556.05,0.00019452,2]
[367304188,1750741838962,-4192.3,0.00019452,2]
[367304190,1750741838971,-460.0,0.00019452,2]
[367304192,1750741838980,-460.0,0.00019452,2]
[367304193,1750741838989,-711.51,0.00019452,2]
[367304195,1750741838999,-460.0,0.00019452,2]
[367304197,1750741839008,-460.0,0.00019452,2]
[367304198,1750741839018,-975.3,0.00019452,2]
[367304199,1750741839028,-1064.35,0.00019452,2]
[367304200,1750741839038,-579.15,0.00019452,2]
[367304201,1750741839047,-840.58,0.00019452,2]
[367304202,1750741839057,-1797.04,0.00019452,2]
[367304203,1750741839066,-460.0,0.00019452,2]
[367304204,1750741839076,-858.25,0.00019452,2]
[367304205,1750741839085,-611.35,0.00019452,2]
[367304206,1750741839095,-804.06,0.00019452,2]
[367304207,1750741839104,-642.32,0.00019452,2]
[367304208,1750741839113,-503.84,0.00019452,2]
[367304209,1750741839123,-512.8,0.00019452,2]
[367304210,1750741839132,-1409.21,0.00019452,2]
[367304211,1750741839141,-622.81,0.00019452,2]
[367304212,1750741839151,-1737.02,0.00019452,2]
[367304213,1750741839162,-2907.26,0.00019452,2]
[367304214,1750741839171,-460.0,0.00019452,2]
[367304215,1750741839181,-1988.08,0.00019452,2]
[367304216,1750741839191,-460.0,0.00019452,2]
[367304217,1750741839200,-460.0,0.00019452,2]
[367304218,1750741839210,-613.68,0.00019452,2]
[367304219,1750741839220,-1427.57,0.00019452,2]
[367304220,1750741839230,-287.0,0.00019475,2]
[367304221,1750741839240,-151.0,0.000195,2]
[367304222,1750741839251,-555.64,0.00019505,3]
[367304223,1750741839262,-277.82,0.00019505,3]
[367304224,1750741839273,-277.82,0.00019505,3]
[367304225,1750741839283,-425.14181427,0.00019515,2]
[367304226,1750741839294,-230.20892031,0.00019515,2]
[367304227,1750741839304,-213.66798275,0.00019515,2]
[367304228,1750741839314,-846.68469334,0.00019515,2]
[367304229,1750741839324,-160.0,0.00019515,2]
[367304230,1750741839334,-160.0,0.00019515,2]
[367304231,1750741839343,-160.0,0.00019515,2]
[367304232,1750741839353,-12556.00642039,0.00019515,2]
[367304233,1750741839362,-836.80226758,0.00019515,2]
[367304234,1750741839372,-160.0,0.00019515,2]
[367304235,1750741839382,-160.0,0.00019534,4]
[367304236,1750741839392,-1840.01088292,0.00019556,2]
[367304237,1750741839401,-151.0,0.000196,2]
[367304238,1750741839411,-460.0,0.00019726,2]
[367304239,1750741839420,-606.4196017,0.00019726,2]
[367304240,1750741839429,-460.0,0.00019726,2]
[367304241,1750741839439,-510.64,0.00019726,2]
[367304242,1750741839448,-460.0,0.00019726,2]
[367304243,1750741839457,-1014.96,0.00019726,2]
[367304244,1750741839467,-183.02222115,0.00019726,2]
[367304245,1750741839476,-504.53,0.00019726,2]
[367304246,1750741839485,-460.0,0.00019726,2]
[367304247,1750741839494,-460.0,0.00019726,2]
[367304248,1750741839504,-460.0,0.00019726,2]
[367304249,1750741839513,-460.0,0.00019726,2]
[367304250,1750741839522,-460.0,0.00019726,2]
[367304251,1750741839532,-460.0,0.00019726,2]
[367304252,1750741839541,-460.0,0.00019726,2]
[367304253,1750741839551,-567.4,0.00019726,2]
[367304254,1750741839561,-460.0,0.00019726,2]
[367304255,1750741839571,-460.0,0.00019726,2]
[367304256,1750741839581,-1904.84,0.00019726,2]
[367304257,1750741839590,-460.0,0.00019726,2]
[367304258,1750741839601,-460.0,0.00019726,2]
[367304259,1750741839611,-460.0,0.00019726,2]
[367304260,1750741839620,-489.04,0.00019726,2]
[367304261,1750741839630,-543.26,0.00019726,2]
[367304262,1750741839641,-460.0,0.00019726,2]
[367304263,1750741839655,-1742.45,0.00019726,2]
[367304264,1750741839664,-467.83,0.00019726,2]
[367304265,1750741839673,-460.0,0.00019726,2]
[367304266,1750741839683,-751.24,0.00019726,2]
[367304267,1750741839692,-517.72,0.00019726,2]
[367304268,1750741839701,-688.58,0.00019726,2]
[367304269,1750741839710,-460.0,0.00019726,2]
[367304270,1750741839720,-460.0,0.00019726,2]
[367304271,1750741839732,-563.18453998,0.00019726,2]
[367304272,1750741839742,-558.25,0.00019726,2]
[367304274,1750741839751,-460.0,0.00019726,2]
[367304276,1750741839762,-621.5,0.00019726,2]
[367304278,1750741839771,-460.0,0.00019726,2]
[367304280,1750741839780,-614.99,0.00019726,2]
[367304281,1750741839789,-1417.57,0.00019726,2]
[367304283,1750741839799,-1081.7,0.00019726,2]
[367304285,1750741839808,-1621.83,0.00019726,2]
[367304287,1750741839817,-1556.05,0.00019726,2]
[367304289,1750741839827,-4192.3,0.00019726,2]
[367304291,1750741839836,-460.0,0.00019726,2]
[367304293,1750741839846,-460.0,0.00019726,2]
[367304295,1750741839855,-711.51,0.00019726,2]
[367304297,1750741839864,-460.0,0.00019726,2]